bitfinex/quotes_BTCUSD_20241124
["timestamp","ask_amount","ask_price","bid_price","bid_amount"]
[1732458833956,0.103577,96547.0,96546.0,0.13895997]
[1732458834181,0.103577,96547.0,96546.0,0.10201427]
[1732458834625,0.207127,96560.0,96546.0,0.10201427]
[1732458834843,0.103574,96549.0,96547.0,0.10201427]
[1732458835055,0.1262571,96565.0,96547.0,0.10201427]
[1732458835276,0.103567,96555.0,96547.0,0.10201427]
[1732458835510,0.1262571,96565.0,96547.0,0.10201427]
[1732458835511,0.1262571,96565.0,96547.0,0.24097424]
[1732458835791,0.1262571,96565.0,96552.0,0.093213]
[1732458836004,0.20712,96562.0,96553.0,0.10201427]
[1732458836222,0.1262571,96565.0,96553.0,0.10201427]
[1732458836223,0.103558,96564.0,96553.0,0.10201427]
[1732458836470,0.20712,96562.0,96553.0,0.10201427]
[1732458836677,0.103575,96548.0,96547.0,0.13895997]
[1732458836904,0.207148,96550.0,96547.0,0.10201427]
[1732458837132,0.103576,96547.0,96544.0,0.13895997]
[1732458837782,0.103577,96546.0,96544.0,0.13895997]
[1732458837987,0.103577,96547.0,96543.0,0.13895997]
[1732458838214,0.103577,96546.0,96543.0,0.13895997]
[1732458838437,0.103579,96544.0,96542.0,0.13895997]
[1732458838701,0.1262571,96565.0,96541.0,0.0017142]
[1732458838702,0.103581,96542.0,96541.0,0.0017142]
[1732458839808,0.103516,96542.0,96541.0,0.0017142]
[1732458840719,0.103516,96542.0,96541.0,0.00120823]
[1732458843099,0.0008573,96547.0,96541.0,0.1032225]
[1732458843352,0.0007573,96547.0,96542.0,0.10201427]
[1732458843850,0.10358,96543.0,96542.0,0.10201427]
[1732458844291,0.103581,96542.0,96541.0,0.00120823]
[1732458844955,0.152181,96542.0,96541.0,0.00120823]
[1732458847187,0.103581,96542.0,96541.0,1.00120823]
[1732458850331,0.103481,96542.0,96541.0,1.00120823]
[1732458852167,0.1043383,96542.0,96541.0,1.00120823]
[1732458852849,0.1825383,96542.0,96541.0,1.00120823]
[1732458855744,1.6825383,96542.0,96541.0,1.00120823]
[1732458857150,1.7305383,96542.0,96541.0,1.00120823]
[1732458858792,0.2535383,96542.0,96541.0,1.00120823]
[1732458859055,0.35555257,96542.0,96541.0,0.99163775]
[1732458859304,2.20755257,96542.0,96541.0,0.99163775]
[1732458860057,2.20755257,96542.0,96541.0,0.91353775]
[1732458860058,2.23451411,96542.0,96541.0,0.91353775]
[1732458860289,2.20755257,96542.0,96541.0,0.67466428]
[1732458860567,2.20755257,96542.0,96541.0,0.58323028]
[1732458860824,1.8805383,96542.0,96541.0,0.58323028]
[1732458861056,0.2543383,96542.0,96541.0,0.58323028]
[1732458861291,0.0008573,96542.0,96541.0,0.58323028]
[1732458861537,0.1044383,96542.0,96541.0,0.58323028]
[1732458861821,0.0008573,96542.0,96541.0,0.58323028]
[1732458862104,0.0008573,96542.0,96541.0,0.67645428]
[1732458862862,0.0008573,96542.0,96541.0,0.77846855]
[1732458863318,0.0008573,96542.0,96541.0,0.78018315]
[1732458864263,0.0008573,96542.0,96541.0,1.03708315]
[1732458864502,1.0,96545.0,96544.0,0.468221]
[1732458864764,0.0007573,96547.0,96544.0,0.468221]
[1732458864765,0.0007573,96547.0,96546.0,0.468219]
[1732458864990,0.0007573,96547.0,96546.0,0.77023327]
[1732458865260,0.0007573,96547.0,96546.0,1.04842758]
[1732458865772,0.0007573,96547.0,96546.0,0.84142758]
[1732458866018,0.0007573,96547.0,96546.0,0.56323327]
[1732458867004,0.0007573,96547.0,96546.0,0.60511804]
[1732458867459,0.0007573,96547.0,96546.0,0.80511804]
[1732458868157,0.0007573,96547.0,96546.0,0.60511804]
[1732458868853,0.0007573,96547.0,96546.0,0.60711804]
[1732458869135,0.0008571,96565.0,96546.0,0.60711804]
[1732458869136,0.0008571,96565.0,96558.0,0.2]
[1732458869369,0.0008571,96565.0,96564.0,0.21821627]
[1732458869810,0.0008571,96565.0,96564.0,0.42683667]
[1732458870032,0.0008571,96565.0,96564.0,0.19521627]
[1732458870282,0.0007571,96565.0,96564.0,0.46236952]
[1732458870499,0.0007571,96565.0,96564.0,0.30011627]
[1732458870721,0.0007571,96565.0,96564.0,0.34681627]
[1732458871662,0.0007571,96565.0,96564.0,0.32381627]
[1732458871890,0.0007571,96565.0,96564.0,0.55526577]
[1732458872126,0.0007571,96565.0,96564.0,0.32381627]
[1732458872345,0.0007571,96565.0,96564.0,0.19521627]
[1732458872571,0.0007571,96565.0,96564.0,0.19625172]
[1732458872815,0.0007571,96565.0,96564.0,0.19521627]
[1732458873050,0.0007571,96565.0,96564.0,0.38032822]
[1732458873274,0.0007571,96565.0,96564.0,0.19521627]
[1732458875106,0.0007571,96565.0,96564.0,0.33401796]
[1732458875328,0.0007571,96565.0,96564.0,0.33400286]
[1732458875540,0.0007571,96565.0,96564.0,0.33400213]
[1732458875752,0.0007571,96565.0,96564.0,0.19521627]
[1732458875980,0.0007571,96565.0,96564.0,0.38029179]
[1732458876204,0.0007571,96565.0,96564.0,0.19521627]
[1732458877403,0.0007571,96565.0,96564.0,0.38024995]
[1732458877581,0.0007571,96565.0,96564.0,0.19521627]
[1732458879457,0.0007571,96565.0,96564.0,0.10201427]
[1732458880381,1.1043141,96565.0,96564.0,0.10201427]
[1732458880643,1.1043141,96565.0,96556.0,0.093209]
[1732458880644,0.207116,96564.0,96556.0,0.13875752]
[1732458880863,1.0007571,96565.0,96557.0,0.10201427]
[1732458881086,0.103564,96558.0,96557.0,0.10201427]
[1732458881293,0.207116,96564.0,96557.0,0.10201427]
[1732458881747,1.0007571,96565.0,96552.0,0.13875752]
[1732458881748,0.207122,96561.0,96552.0,0.13875752]
[1732458881968,0.103568,96554.0,96553.0,0.10201427]
[1732458882187,0.10357,96553.0,96552.0,0.10201427]
[1732458882402,0.207127,96560.0,96552.0,0.10201427]
[1732458882620,1.0007571,96565.0,96552.0,0.10201427]
[1732458882836,1.0007571,96565.0,96556.0,0.093209]
[1732458883049,1.0007571,96565.0,96557.0,0.093208]
[1732458883050,0.10356,96563.0,96557.0,0.093208]
[1732458883265,1.0007571,96565.0,96557.0,0.10201427]
[1732458883500,1.0007571,96565.0,96560.0,0.093206]
[1732458883711,1.0007571,96565.0,96557.0,0.10201427]
[1732458883961,0.207118,96563.0,96557.0,0.10201427]
[1732458884198,1.0007571,96565.0,96557.0,0.10201427]
[1732458884700,0.103559,96563.0,96557.0,0.10201427]
[1732458885137,1.0007571,96565.0,96564.0,0.093202]
[1732458885358,1.0007571,96565.0,96564.0,0.19521627]
[1732458886006,1.0007571,96565.0,96564.0,0.10201427]
[1732458886452,1.0007571,96565.0,96564.0,0.19521627]
[1732458886680,1.0007571,96565.0,96564.0,0.10201427]
[1732458886910,1.0007571,96565.0,96564.0,0.19521627]
[1732458892270,1.0007571,96565.0,96564.0,0.10201427]
[1732458892490,1.0007571,96565.0,96564.0,0.19521627]
[1732458895132,1.0007571,96565.0,96564.0,0.33397912]
[1732458895355,1.0007571,96565.0,96564.0,0.38023341]
[1732458895573,1.0007571,96565.0,96564.0,0.19521627]
[1732458895790,1.0007571,96565.0,96564.0,0.10201427]
[1732458896040,1.0007571,96565.0,96564.0,0.38026085]
[1732458896275,1.0007571,96565.0,96564.0,0.28705885]
[1732458896498,1.1043141,96565.0,96564.0,0.28705885]
[1732458896730,1.1043141,96565.0,96564.0,0.10201427]
[1732458896731,1.0007571,96565.0,96564.0,0.10201427]
[1732458896921,1.0007571,96565.0,96564.0,0.24080589]
[1732458897185,1.0007571,96565.0,96564.0,0.10201427]
[1732458897612,1.0007571,96565.0,96564.0,0.19521627]
[1732458898268,1.1043141,96565.0,96564.0,0.10201427]
[1732458898490,1.1043141,96565.0,96559.0,0.18506373]
[1732458898491,0.103561,96562.0,96559.0,0.13879779]
[1732458898716,0.103563,96559.0,96558.0,0.0017142]
[1732458901219,0.103563,96559.0,96542.0,0.18515486]
[1732458901220,0.103575,96548.0,96544.0,0.12948834]
[1732458901452,0.103572,96551.0,96546.0,0.10201427]
[1732458901679,0.103565,96558.0,96552.0,0.093213]
[1732458901911,0.207119,96563.0,96547.0,0.093218]
[1732458901912,1.707119,96563.0,96547.0,0.093218]
[1732458902139,1.707119,96563.0,96548.0,0.10201427]
[1732458902140,1.5,96563.0,96548.0,0.10201427]
[1732458902381,1.5,96563.0,96541.0,0.77009974]
[1732458902643,0.10358,96543.0,96542.0,0.28716913]
[1732458902876,0.10358,96543.0,96541.0,0.58494488]
[1732458902877,0.103581,96542.0,96541.0,0.68695915]
[1732458903106,0.184581,96542.0,96541.0,0.58494488]
[1732458904978,0.22659523,96542.0,96541.0,0.58494488]
[1732458905432,0.103581,96542.0,96541.0,0.58494488]
[1732458905653,0.103577,96546.0,96541.0,0.58494488]
[1732458905890,0.207124,96561.0,96542.0,0.10201427]
[1732458906146,1.03959453,96565.0,96543.0,0.00103569]
[1732458906377,0.103562,96560.0,96553.0,0.093212]
[1732458906594,1.03959453,96565.0,96554.0,0.10201427]
[1732458907068,1.03959453,96565.0,96549.0,0.18515486]
[1732458907300,1.03959453,96565.0,96554.0,0.10201427]
[1732458907301,0.103566,96557.0,96554.0,0.10201427]
[1732458907527,1.03959453,96565.0,96554.0,0.10201427]
[1732458907999,0.103562,96560.0,96554.0,0.19522527]
[1732458908234,0.103566,96557.0,96554.0,0.10201427]
[1732458908452,0.103566,96556.0,96554.0,0.10201427]
[1732458908667,0.103566,96556.0,96554.0,0.28716913]
[1732458908885,0.207127,96559.0,96554.0,0.28716913]
[1732458908886,0.103567,96555.0,96554.0,0.28716913]
[1732458909358,0.207129,96558.0,96536.0,0.093229]
[1732458909359,0.103568,96554.0,96553.0,0.18515486]
[1732458909576,1.03959453,96565.0,96547.0,0.18515486]
[1732458909799,0.207144,96552.0,96548.0,0.28716913]
[1732458910031,0.103574,96549.0,96548.0,0.10201427]
[1732458910252,0.207129,96558.0,96547.0,0.13902807]
[1732458910485,0.207129,96558.0,96545.0,0.0017146]
[1732458910486,0.103571,96552.0,96548.0,0.13902807]
[1732458910930,0.103574,96549.0,96548.0,0.13902807]
[1732458911370,1.0,96555.0,96545.0,0.28888373]
[1732458911371,0.103576,96547.0,96546.0,0.18515486]
[1732458911794,0.103576,96547.0,96545.0,0.10372887]
[1732458911795,0.207137,96554.0,96545.0,0.10372887]
[1732458912020,0.207148,96549.0,96547.0,0.18536424]
[1732458912247,0.103576,96547.0,96546.0,0.18536424]
[1732458912525,0.207148,96549.0,96546.0,0.18536424]
[1732458912526,0.103575,96549.0,96546.0,0.18536424]
[1732458912740,1.0,96555.0,96548.0,0.13902455]
[1732458912959,1.0,96555.0,96549.0,0.10201427]
[1732458913199,1.0,96555.0,96551.0,0.23223855]
[1732458913434,1.0,96555.0,96549.0,0.19523027]
[1732458913435,0.10357,96553.0,96552.0,0.13902455]
[1732458913660,0.10357,96553.0,96552.0,0.13901656]
[1732458913882,1.103568,96555.0,96552.0,0.13901656]
[1732458914071,0.103569,96554.0,96552.0,0.13901656]
[1732458914335,1.0,96555.0,96552.0,0.10201427]
[1732458914561,1.0,96555.0,96550.0,0.093215]
[1732458914562,1.0,96555.0,96554.0,0.093212]
[1732458914797,1.0,96555.0,96554.0,0.10201427]
[1732458915053,1.0,96555.0,96554.0,0.19522627]
[1732458915283,1.0,96555.0,96554.0,0.10201427]
[1732458915537,1.103567,96555.0,96554.0,0.10201427]
[1732458915755,1.0,96555.0,96554.0,0.10201427]
[1732458916219,1.103567,96555.0,96554.0,0.10201427]
[1732458916445,1.0,96555.0,96554.0,0.10201427]
[1732458916671,1.0,96555.0,96554.0,0.19522627]
[1732458917203,1.0,96555.0,96554.0,0.38056609]
[1732458917453,1.0,96555.0,96554.0,0.19522627]
[1732458919131,1.0,96555.0,96554.0,0.39522627]
[1732458919851,1.0,96555.0,96554.0,0.23755336]
[1732458920108,1.0,96555.0,96554.0,0.96614596]
[1732458920340,0.9974144,96565.0,96564.0,0.293202]
[1732458920572,0.0494,96619.0,96592.0,0.169275]
[1732458920814,0.0494,96619.0,96592.0,0.27128927]
[1732458921746,0.103502,96616.0,96592.0,0.27128927]
[1732458921977,0.256399,96619.0,96592.0,0.27128927]
[1732458921978,0.103514,96605.0,96592.0,0.19518927]
[1732458922215,0.103519,96601.0,96592.0,0.38044172]
[1732458922449,0.207029,96605.0,96592.0,0.10201427]
[1732458922749,0.081,96602.0,96592.0,0.19518927]
[1732458922965,0.1043729,96604.0,96592.0,0.19518927]
[1732458923173,0.2078869,96604.0,96592.0,0.19518927]
[1732458923356,0.2078869,96604.0,96592.0,0.10201427]
[1732458923604,0.103523,96597.0,96592.0,0.10201427]
[1732458924047,1.10352,96599.0,96592.0,0.19518927]
[1732458924463,0.207049,96596.0,96592.0,0.24096789]
[1732458924755,0.103525,96595.0,96592.0,0.24096789]
[1732458925660,1.0,96599.0,96592.0,0.10201427]
[1732458925884,0.207049,96596.0,96592.0,0.10201427]
[1732458926104,0.104384,96593.0,96592.0,0.10201427]
[1732458926559,0.000857,96593.0,96592.0,0.10201427]
[1732458927519,0.000857,96593.0,96592.0,0.19518927]
[1732458929171,0.000857,96593.0,96592.0,0.19622441]
[1732458929388,0.000857,96593.0,96592.0,0.19518927]
[1732458930893,0.000857,96593.0,96592.0,0.54822437]
[1732458931126,0.000857,96593.0,96592.0,0.54718927]
[1732458931766,0.000457,96593.0,96592.0,0.54718927]
[1732458932178,0.000457,96593.0,96592.0,0.54518927]
[1732458932423,0.000457,96593.0,96592.0,0.74718927]
[1732458932640,1.0,96599.0,96598.0,0.645169]
[1732458932877,0.9268,96599.0,96598.0,0.74718327]
[1732458933322,0.75915378,96599.0,96598.0,0.77018327]
[1732458933536,0.0008573,96623.0,96622.0,0.443146]
[1732458933753,0.0008573,96623.0,96622.0,0.62286027]
[1732458933959,0.0008573,96623.0,96622.0,0.82486027]
[1732458934182,0.0008577,96639.0,96638.0,0.443131]
[1732458934394,0.0008577,96639.0,96638.0,0.74514527]
[1732458934822,0.0008577,96639.0,96638.0,0.74714527]
[1732458935281,0.0008577,96639.0,96638.0,0.54514527]
[1732458936173,0.0008577,96639.0,96638.0,0.58715421]
[1732458936898,0.0008577,96639.0,96638.0,0.38715421]
[1732458937102,0.0008577,96639.0,96638.0,0.34514527]
[1732458937749,0.0008577,96639.0,96638.0,0.19514527]
[1732458941861,0.0008577,96639.0,96638.0,0.10201427]
[1732458941862,0.1798347,96639.0,96638.0,0.10201427]
[1732458942104,0.1035,96618.0,96599.0,0.2]
[1732458942407,0.1215577,96639.0,96594.0,0.2777]
[1732458942408,0.023,96636.0,96615.0,0.10201427]
[1732458942617,0.023,96638.0,96615.0,0.10201427]
[1732458942618,0.103502,96616.0,96615.0,0.10201427]
[1732458943086,0.153302,96616.0,96615.0,0.10201427]
[1732458943756,0.0498,96616.0,96615.0,0.10201427]
[1732458943970,0.0498,96616.0,96615.0,0.19516727]
[1732458944406,0.0498,96616.0,96615.0,0.10201427]
[1732458945555,0.0498,96616.0,96615.0,0.19516727]
[1732458945778,0.0498,96616.0,96615.0,0.10201427]
[1732458946007,0.0498,96616.0,96615.0,0.19516727]
[1732458946443,0.0498,96616.0,96615.0,0.10201427]
[1732458946872,0.0498,96616.0,96615.0,0.19516727]
[1732458947298,0.0498,96616.0,96615.0,0.10201427]
[1732458947919,0.0498,96616.0,96615.0,0.19516727]
[1732458948346,0.11861773,96639.0,96615.0,0.19516727]
[1732458948582,0.0498,96633.0,96616.0,0.00103489]
[1732458948797,0.0498,96633.0,96599.0,0.02144493]
[1732458948798,0.20697,96632.0,96618.0,0.09315]
[1732458949011,0.0498,96633.0,96619.0,0.10201427]
[1732458949227,0.103498,96620.0,96619.0,0.10201427]
[1732458949650,0.206989,96624.0,96619.0,0.10201427]
[1732458949651,0.103496,96622.0,96619.0,0.10201427]
[1732458949906,0.0498,96633.0,96619.0,0.10201427]
[1732458949907,0.103498,96620.0,96619.0,0.10201427]
[1732458952294,0.103498,96620.0,96591.0,0.04146742]
[1732458952295,0.103517,96603.0,96595.0,0.093171]
[1732458952501,0.413962,96627.0,96579.0,0.04214749]
[1732458952502,0.206985,96625.0,96596.0,0.10201427]
[1732458952717,0.103516,96603.0,96596.0,0.10201427]
[1732458952938,0.1253,96627.0,96606.0,0.093161]
[1732458953146,0.103501,96617.0,96607.0,0.10201427]
[1732458953385,0.1253,96627.0,96594.0,0.093173]
[1732458953386,0.1253,96627.0,96608.0,0.10304927]
[1732458953601,0.206984,96626.0,96613.0,0.093154]
[1732458953848,0.103492,96626.0,96619.0,0.093149]
[1732458954058,0.103492,96626.0,96620.0,0.10201427]
[1732458954318,0.1253,96627.0,96626.0,0.093142]
[1732458954534,0.2008575,96662.0,96626.0,0.093142]
[1732458954535,0.0755,96636.0,96632.0,0.093136]
[1732458954737,0.0755,96636.0,96635.0,0.093133]
[1732458954950,0.0755,96636.0,96635.0,0.19514727]
[1732458955167,0.0498,96641.0,96638.0,0.093131]
[1732458955378,0.0498,96641.0,96638.0,0.19514527]
[1732458956044,0.0008577,96643.0,96638.0,0.19618]
[1732458956258,0.0008577,96643.0,96638.0,0.19617991]
[1732458956494,0.0008577,96643.0,96638.0,0.19617984]
[1732458956705,0.0008577,96643.0,96638.0,0.19514527]
[1732458958651,0.0008577,96643.0,96638.0,0.34514527]
[1732458959963,0.0008577,96643.0,96638.0,0.58630534]
[1732458960627,0.0008577,96643.0,96638.0,0.58830534]
[1732458960863,0.0008577,96643.0,96638.0,0.58630534]
[1732458961958,0.0008577,96643.0,96638.0,0.38630534]
[1732458962818,0.0008577,96643.0,96638.0,0.34514527]
[1732458963495,0.103477,96640.0,96638.0,0.10201427]
[1732458963947,0.0008577,96643.0,96638.0,0.10201427]
[1732458964201,0.2078057,96643.0,96638.0,0.10201427]
[1732458964460,0.0008577,96643.0,96638.0,0.19514527]
[1732458964671,0.1043347,96639.0,96638.0,0.25201427]
[1732458964901,0.0008577,96639.0,96638.0,0.25201427]
[1732458965124,0.0008577,96639.0,96638.0,0.34514527]
[1732458965615,0.0008577,96639.0,96638.0,0.25201427]
[1732458965834,0.0008577,96639.0,96638.0,0.34514527]
[1732458967861,0.0008577,96639.0,96638.0,0.52976718]
[1732458968083,0.0008577,96639.0,96638.0,0.54514527]
[1732458968289,0.0008577,96639.0,96638.0,0.77592265]
[1732458968503,0.0008577,96639.0,96638.0,0.54514527]
[1732458969466,0.0008577,96639.0,96638.0,0.34514527]
[1732458971264,0.0007727,96639.0,96638.0,0.52984013]
[1732458971474,0.0007727,96639.0,96638.0,0.54514527]
[1732458971918,0.0007727,96639.0,96638.0,0.82207813]
[1732458972191,0.0008577,96643.0,96638.0,0.82207813]
[1732458972192,0.0008577,96643.0,96642.0,0.495127]
[1732458972443,1.0,96645.0,96644.0,0.668125]
[1732458972645,1.0,96645.0,96644.0,0.76813927]
[1732458972871,1.0,96645.0,96644.0,0.77013927]
[1732458973079,1.0,96645.0,96644.0,0.76813927]
[1732458973312,1.0,96645.0,96644.0,0.80026788]
[1732458973787,0.99,96645.0,96644.0,0.80026788]
[1732458974012,0.99,96645.0,96644.0,0.54513927]
[1732458974222,0.99,96645.0,96644.0,0.74513927]
[1732458974673,0.99,96645.0,96644.0,0.34513927]
[1732458974879,0.99,96645.0,96644.0,0.52982801]
[1732458975105,0.99,96645.0,96644.0,0.34513927]
[1732458975375,0.99,96645.0,96644.0,0.57600014]
[1732458975589,0.99,96645.0,96644.0,0.34513927]
[1732458976512,0.99,96645.0,96644.0,0.10201427]
[1732458976729,1.093471,96645.0,96644.0,0.10201427]
[1732458976949,0.99,96645.0,96644.0,0.10201427]
[1732458977160,0.99,96645.0,96644.0,0.19513927]
[1732458978309,0.99,96645.0,96644.0,0.37990839]
[1732458978520,0.99,96645.0,96644.0,0.52994796]
[1732458978738,0.99,96645.0,96644.0,0.34513927]
[1732458979665,0.99,96645.0,96644.0,0.54513927]
[1732458980114,0.99,96645.0,96644.0,0.74513927]
[1732458980579,0.99,96645.0,96644.0,0.54513927]
[1732458980831,0.99,96645.0,96644.0,0.74713927]
[1732458981284,0.99,96645.0,96644.0,0.74513927]
[1732458981532,0.99,96645.0,96644.0,0.79825241]
[1732458981754,0.99,96645.0,96644.0,0.80025241]
[1732458982230,0.88627114,96645.0,96644.0,0.80025241]
[1732458982445,0.78280114,96645.0,96644.0,0.87795241]
[1732458983101,0.77170974,96645.0,96644.0,0.87795241]
[1732458983555,0.66823974,96645.0,96644.0,0.87795241]
[1732458984721,0.56476974,96645.0,96644.0,0.87795241]
[1732458984973,0.53197078,96645.0,96644.0,0.87795241]
[1732458985429,0.41152304,96645.0,96644.0,0.87795241]
[1732458985641,0.40701133,96645.0,96644.0,0.87795241]
[1732458985863,0.39317949,96645.0,96644.0,0.87795241]
[1732458986083,0.38987361,96645.0,96644.0,0.87795241]
[1732458986536,0.36917961,96645.0,96644.0,0.87795241]
[1732458986746,0.34848561,96645.0,96644.0,0.87795241]
[1732458986966,0.32779161,96645.0,96644.0,0.87795241]
[1732458987393,0.26570961,96645.0,96644.0,0.87795241]
[1732458987828,0.14320611,96645.0,96644.0,0.87595241]
[1732458988049,0.0008575,96662.0,96655.0,0.495114]
[1732458988272,0.0008575,96662.0,96655.0,0.79824141]
[1732458988498,7e-07,96656.0,96655.0,0.79824141]
[1732458988711,0.0008575,96662.0,96659.0,0.66811]
[1732458988712,4e-07,96660.0,96659.0,0.66811]
[1732458988923,4e-07,96660.0,96659.0,0.80023741]
[1732458989150,9e-07,96662.0,96661.0,0.645108]
[1732458989371,9e-07,96662.0,96661.0,0.80023541]
[1732458989587,0.88161109,96665.0,96664.0,0.668106]
[1732458989856,0.88161109,96665.0,96664.0,0.80023341]
[1732458990075,0.88161109,96665.0,96664.0,0.79823341]
[1732458990298,0.79717903,96665.0,96664.0,0.82839224]
[1732458990516,0.68837744,96665.0,96664.0,1.23848429]
[1732458990739,0.46336079,96665.0,96664.0,0.83039224]
[1732458990966,0.34208407,96665.0,96664.0,0.82122103]
[1732458991184,0.0008569,96723.0,96721.0,0.082712]
[1732458991185,0.0789138,96722.0,96721.0,0.082712]
[1732458992184,0.0789138,96722.0,96721.0,0.25201427]
[1732458992630,0.0789138,96722.0,96721.0,0.10201427]
[1732458992631,0.0739138,96722.0,96721.0,0.10201427]
[1732458992871,0.0739138,96722.0,96721.0,0.18472627]
[1732458993317,0.0739138,96722.0,96721.0,0.33472627]
[1732458994517,0.0739138,96722.0,96721.0,0.25201427]
[1732458994978,0.1773028,96722.0,96721.0,0.10201427]
[1732458995439,0.1211138,96722.0,96721.0,0.10201427]
[1732458996908,0.1219706,96722.0,96721.0,0.10201427]
[1732458997143,0.1219706,96722.0,96721.0,0.18472627]
[1732458997375,0.1219706,96722.0,96721.0,0.33575996]
[1732458997595,0.1219706,96722.0,96721.0,0.25201427]
[1732458998044,0.1219706,96722.0,96721.0,0.10201427]
[1732458998753,0.2253596,96722.0,96721.0,0.10201427]
[1732458999224,0.1219706,96722.0,96721.0,0.10201427]
[1732458999458,0.1219706,96722.0,96721.0,0.33472627]
[1732459002464,0.0008568,96722.0,96721.0,0.33472627]
[1732459003146,0.0001568,96722.0,96721.0,0.33472627]
[1732459006746,0.0001568,96722.0,96721.0,0.53472627]
[1732459008105,0.0001568,96722.0,96721.0,0.76443834]
[1732459008324,0.0001568,96722.0,96721.0,0.53643847]
[1732459008581,0.0001568,96722.0,96721.0,0.67422591]
[1732459008788,0.0001568,96722.0,96721.0,0.72014792]
[1732459009246,0.0001568,96722.0,96721.0,0.53643847]
[1732459009459,0.0001568,96722.0,96721.0,0.53843847]
[1732459009694,0.0826,96746.0,96721.0,0.67620416]
[1732459009902,0.001,96781.0,96721.0,0.67620416]
[1732459010129,0.3236,96883.0,96722.0,0.2992]
[1732459010347,0.49184659,96904.0,96795.0,0.2]
[1732459010584,1.50007,97007.0,96975.0,0.2]
[1732459010803,0.04970705,97006.0,97004.0,0.23305399]
[1732459011024,0.04970705,97006.0,97001.0,0.40525486]
[1732459011233,0.04970705,97006.0,96968.0,0.2]
[1732459011234,0.04970705,97006.0,97004.0,0.2]
[1732459011461,1.5,97005.0,97004.0,0.2]
[1732459011691,1.5,97005.0,97004.0,0.23246613]
[1732459012113,1.49996,97005.0,97004.0,0.23246613]
[1732459012393,0.04970705,97006.0,97005.0,0.32524413]
[1732459012625,0.04151734,97006.0,97005.0,0.32524413]
[1732459013066,7e-05,97007.0,97006.0,0.32524313]
[1732459013278,7e-05,97007.0,97006.0,0.4292574]
[1732459013503,0.01406134,97015.0,97014.0,0.202]
[1732459013721,0.01406134,97015.0,97014.0,0.30201427]
[1732459014234,1.5,97030.0,97021.0,0.2]
[1732459014421,0.1286,97031.0,97022.0,0.10201427]
[1732459014647,0.1286,97031.0,97029.0,0.30336153]
[1732459014860,0.1286,97031.0,97022.0,0.30201427]
[1732459015084,0.1286,97031.0,97030.0,0.2]
[1732459015301,0.1286,97031.0,97023.0,0.30247958]
[1732459015601,1.603062,97029.0,97010.0,0.2]
[1732459015806,1.603062,97029.0,97007.0,0.18246613]
[1732459015807,0.103067,97024.0,97011.0,0.10201427]
[1732459016028,0.1286,97031.0,97001.0,0.2]
[1732459016029,0.10307,97021.0,97001.0,0.2]
[1732459016250,0.103072,97019.0,97008.0,0.39704229]
[1732459016480,0.103072,97019.0,96995.0,0.092787]
[1732459016481,0.16753387,97024.0,96991.0,0.03246613]
[1732459016692,0.16753387,97024.0,96992.0,0.10201427]
[1732459016922,0.103085,97008.0,96992.0,0.10201427]
[1732459017143,0.103081,97011.0,96992.0,0.10201427]
[1732459017390,1.5,96993.0,96992.0,0.10201427]
[1732459017605,1.5,96993.0,96992.0,0.2292714]
[1732459017837,1.5,96993.0,96992.0,0.10201427]
[1732459018068,1.5,96993.0,96992.0,0.10401427]
[1732459018512,1.5,96993.0,96992.0,0.10201427]
[1732459018745,1.5,96993.0,96983.0,0.03246613]
[1732459018978,0.206172,97007.0,96988.0,0.10201427]
[1732459019199,0.103088,97004.0,96988.0,0.10201427]
[1732459019432,0.206161,97012.0,96988.0,0.10201427]
[1732459019433,1.5,96989.0,96988.0,0.10201427]
[1732459020093,1.5,96989.0,96988.0,0.25201427]
[1732459020979,1.5,96989.0,96988.0,0.24386278]
[1732459021220,1.5,96989.0,96978.0,0.03246613]
[1732459021434,0.051542,97118.0,96950.0,0.2]
[1732459021435,0.046,96992.0,96979.0,0.1344804]
[1732459021658,0.046,96992.0,96980.0,0.03246613]
[1732459021934,0.046,96992.0,96948.0,0.2]
[1732459021935,0.1039451,97004.0,96983.0,0.002]
[1732459022148,0.0008561,97004.0,96984.0,0.10201427]
[1732459022389,0.0008561,97004.0,96972.0,0.03246613]
[1732459022610,1.5,96991.0,96973.0,0.10201427]
[1732459022876,0.0008561,97004.0,96973.0,0.10201427]
[1732459022877,0.2008561,97004.0,96973.0,0.10201427]
[1732459023146,0.2008561,97004.0,96941.0,0.2]
[1732459023147,0.16753387,96991.0,96951.0,0.03246613]
[1732459023346,0.2,96995.0,96958.0,0.002]
[1732459023347,1.5,96964.0,96958.0,0.002]
[1732459023590,1.5,96964.0,96959.0,0.10201427]
[1732459023832,1.5,96964.0,96962.0,0.103132]
[1732459024060,1.5,96964.0,96963.0,0.2376124]
[1732459024289,0.206188,96999.0,96969.0,0.03246613]
[1732459024526,0.206181,97002.0,96970.0,0.20616939]
[1732459024759,1.5,96988.0,96956.0,0.041199]
[1732459024988,0.16753387,96991.0,96960.0,0.15]
[1732459025201,0.16753387,96991.0,96956.0,0.03246613]
[1732459025202,0.103127,96968.0,96961.0,0.10201427]
[1732459025419,0.103125,96970.0,96961.0,0.10201427]
[1732459025674,0.1298,97003.0,96961.0,0.10201427]
[1732459025675,0.1298,97003.0,96966.0,0.002]
[1732459025876,0.3298,97003.0,96984.0,0.03246613]
[1732459026095,0.3298,97003.0,96985.0,0.10201427]
[1732459026096,0.206181,97002.0,96985.0,0.10201427]
[1732459026319,0.206181,97002.0,96972.0,0.103122]
[1732459026320,0.3298,97003.0,96970.0,0.103124]
[1732459026551,0.206194,96996.0,96963.0,0.03246613]
[1732459026766,0.206212,96988.0,96968.0,0.15]
[1732459027006,0.206191,96997.0,96970.0,0.002]
[1732459027226,0.1298,97003.0,96970.0,0.002]
[1732459027227,0.1298,97003.0,96977.0,0.03246613]
[1732459027445,0.1298,97003.0,96972.0,0.15]
[1732459027446,0.1298,97003.0,96987.0,0.105106]
[1732459027690,0.103097,96996.0,96981.0,0.105112]
[1732459027914,0.206185,97000.0,96979.0,0.15]
[1732459028125,0.1298,97003.0,96980.0,0.04949434]
[1732459028126,0.103097,96996.0,96980.0,0.04949434]
[1732459028345,0.1298,97003.0,96980.0,0.15260734]
[1732459028560,0.1298,97003.0,96982.0,0.103111]
[1732459028780,0.1298,97003.0,96983.0,0.20512427]
[1732459029009,0.103092,97001.0,96984.0,0.103108]
[1732459029230,0.1298,97003.0,96985.0,0.10201427]